bitfinex/quotes_ETHUSD_20260304
["timestamp","ask_amount","ask_price","bid_price","bid_amount"]
[1772616132836,6.0956605,2071.6,2070.4,1.20749302]
[1772616133511,6.0956605,2071.6,2070.5,1.09311164]
[1772616133836,4.82741974,2071.7,2070.6,1.348]
[1772616134015,4.82676755,2071.9,2070.7,1.20732119]
[1772616134345,4.82676755,2071.9,2070.6,6.17731098]
[1772616134346,6.0956605,2071.1,2070.0,0.001]
[1772616134636,7.18418742,2071.0,2070.0,0.001]
[1772616134953,1.08852692,2071.3,2070.0,8.56376677]
[1772616135168,1.08852692,2071.3,2070.0,7.35604129]
[1772616135308,2.87468111,2071.2,2070.0,7.35604129]
[1772616136050,8.97034161,2071.2,2070.0,7.35604129]
[1772616136224,4.0824202,2071.1,2070.0,7.35604129]
[1772616136542,1.20708802,2071.1,2070.0,7.35604129]
[1772616136850,7.30274852,2071.1,2070.0,1.349]
[1772616137340,3.96495464,2071.0,2070.0,1.348]
[1772616137545,1.08852692,2071.0,2070.2,0.001]
[1772616137747,0.002,2070.8,2070.2,0.001]
[1772616138231,0.002,2070.8,2070.0,1e-08]
[1772616139042,2.87980581,2070.8,2070.0,1e-08]
[1772616139206,0.002,2070.8,2070.0,1e-08]
[1772616139835,0.002,2070.8,2070.0,6.37470805]
[1772616140422,0.002,2070.8,2070.0,7.58243406]
[1772616140619,0.002,2070.8,2070.0,7.58243405]
[1772616140940,0.002,2070.8,2070.1,7.72170804]
[1772616142349,0.002,2070.8,2070.2,1.20761279]
[1772616142950,0.002,2070.8,2070.1,8.92934249]
[1772616143450,0.002,2070.8,2069.9,6.29666775]
[1772616143746,0.002,2070.8,2070.2,1.346]
[1772616144052,0.002,2071.0,2070.2,7.64266775]
[1772616144549,0.002,2071.0,2070.4,6.29666775]
[1772616146248,0.002,2071.0,2070.5,1.346]
[1772616146749,0.002,2071.0,2070.5,2.55343258]
[1772616146914,0.002,2071.0,2070.4,7.50412409]
[1772616147116,0.002,2071.0,2070.5,1.346]
[1772616148718,0.002,2071.0,2070.5,2.55341474]
[1772616149123,0.002,2071.0,2070.5,1.346]
[1772616150137,0.002,2071.0,2070.3,1.346]
[1772616150332,0.001,2070.5,2070.1,8.8944012]
[1772616150532,0.001,2070.5,2069.9,7.50441269]
[1772616150749,0.001,2070.5,2070.2,0.001]
[1772616151681,0.001,2070.5,2069.7,4.83259669]
[1772616151682,0.001,2070.5,2069.7,1.20890251]
[1772616151968,0.001,2070.5,2069.9,0.001]
[1772616152333,2.88253004,2070.7,2069.7,1.20889504]
[1772616152538,2.88253004,2070.7,2069.7,7.50556279]
[1772616152760,6.13096558,2070.8,2069.7,7.50556279]
[1772616152943,0.002,2070.8,2069.7,7.50556279]
[1772616153458,2.88590306,2070.8,2069.7,7.50556279]
[1772616153634,0.002,2070.8,2069.7,7.50556279]
[1772616157768,0.002,2071.3,2071.0,9.996]
[1772616157943,0.002,2071.3,2071.0,8.98933816]
[1772616158149,0.002,2071.3,2070.8,1.348]
[1772616158967,0.002,2071.3,2070.7,1.348]
[1772616159166,1.20702974,2071.2,2070.7,1.348]
[1772616159850,1.20900716,2071.3,2070.7,2.55531547]
[1772616160250,0.002,2071.3,2070.8,6.29666775]
[1772616160467,4.82648776,2072.0,2070.8,6.29666775]
[1772616160641,2.88385246,2071.9,2070.8,6.29666775]
[1772616160968,1.2065637,2072.0,2070.8,6.29666775]
[1772616161177,1.2065637,2072.0,2070.9,7.50387234]
[1772616161771,7.33552928,2072.0,2070.9,6.29666775]
[1772616161946,2.88239777,2071.9,2070.9,6.29666775]
[1772616162145,7.33552928,2072.0,2070.9,6.29666775]
[1772616162479,1.2065637,2072.0,2070.9,6.29666775]
[1772616162679,10.73066391,2072.3,2070.9,6.29666775]
[1772616162680,4.82583507,2072.2,2070.9,6.29666775]
[1772616162888,1.20627261,2072.5,2071.1,6.29666775]
[1772616163043,1.20627261,2072.5,2071.3,6.29666775]
[1772616163350,4.82661831,2072.8,2071.5,6.29666775]
[1772616163753,4.82561831,2072.8,2071.6,6.29666775]
[1772616163952,4.82561831,2072.8,2071.8,6.29666775]
[1772616164153,0.002,2071.9,2071.8,6.29666775]
[1772616164349,4.82561831,2072.8,2071.8,6.29666775]
[1772616164573,0.002,2072.2,2071.8,6.29666775]
[1772616164884,1.20709803,2072.8,2071.8,6.29666775]
[1772616165074,0.001,2072.8,2071.8,6.29666775]
[1772616165280,0.001,2072.8,2071.9,1.20662194]
[1772616165476,0.001,2072.8,2071.9,7.50328969]
[1772616167090,0.002,2073.0,2072.2,6.29666775]
[1772616167291,0.002,2073.0,2072.5,7.50294036]
[1772616167492,0.002,2073.0,2072.3,1.35]
[1772616167664,0.002,2073.0,2072.3,2.55638637]
[1772616167864,0.002,2073.0,2072.3,8.85305412]
[1772616168481,0.002,2073.0,2072.4,6.41656657]
[1772616169365,0.002,2073.0,2072.5,1.20627261]
[1772616169559,0.002,2073.0,2072.5,7.62283918]
[1772616169998,0.002,2073.3,2072.5,7.62283918]
[1772616171165,0.002,2073.3,2071.6,1.20679667]
[1772616171166,6.02415896,2072.7,2071.6,1.20679667]
[1772616171466,1.20621441,2072.6,2071.7,1.35]
[1772616171704,7.23037337,2072.6,2071.8,1.351]
[1772616173611,1.20598166,2073.0,2071.9,6.41656657]
[1772616175690,1.20365565,2073.0,2072.0,1.2065637]
[1772616176696,1.20365565,2073.0,2072.0,1.2075637]
[1772616176886,0.002,2072.8,2072.0,1.2075637]
[1772616177399,6.02615896,2072.8,2072.1,1.352]
[1772616177604,1.20615622,2072.7,2072.1,1.352]
[1772616178187,7.23031518,2072.7,2072.1,1.352]
[1772616181515,7.23031518,2072.7,2072.0,0.001]
[1772616181818,6.02415896,2072.4,2071.8,0.001]
[1772616182181,6.02415896,2072.4,2070.9,6.41656657]
[1772616182504,6.02415896,2072.2,2070.9,7.76956657]
[1772616182693,6.02415896,2072.2,2070.9,1.353]
[1772616183184,6.02415896,2072.2,2070.9,7.76956657]
[1772616183822,1.20650547,2072.1,2071.0,7.62371287]
[1772616184310,1.20633082,2072.4,2071.0,7.62371287]
[1772616184512,1.20631689,2072.5,2071.0,7.62371287]
[1772616185311,6.02415896,2072.4,2071.0,7.62371287]
[1772616185518,2.86757297,2072.3,2071.0,1.353]
[1772616185812,6.02415896,2072.0,2071.0,1.353]
[1772616186592,6.02415896,2071.8,2070.5,1.353]
[1772616186798,6.02415896,2071.6,2070.5,1.353]
[1772616187614,6.02415896,2071.6,2070.4,1.352]
[1772616187827,7.23101389,2071.5,2070.4,1.352]
[1772616188828,7.23101389,2071.5,2069.9,0.001]
[1772616189031,6.02415896,2071.3,2070.0,1.352]
[1772616189584,6.02415896,2071.3,2070.7,0.001]
[1772616189787,1.20702974,2071.2,2070.1,6.41656657]
[1772616190001,1.20702974,2071.2,2070.2,6.41656657]
[1772616190291,1.20702974,2071.2,2070.5,0.001]
[1772616190916,1.20702974,2071.2,2070.6,1.352]
[1772616191693,1.20685493,2071.5,2070.6,1.352]
[1772616191913,7.23101389,2071.5,2070.6,1.352]
[1772616193416,7.23101389,2071.5,2070.5,0.001]
[1772616193617,6.02415896,2071.0,2070.2,0.001]
[1772616193807,6.02415896,2070.8,2070.2,0.001]
[1772616194185,6.02415896,2070.8,2069.9,0.001]
[1772616195792,7.23148015,2070.7,2069.9,0.001]
[1772616196518,6.02415896,2070.6,2069.9,0.001]
[1772616197804,6.02415896,2070.6,2069.7,0.001]
[1772616198101,6.02415896,2070.4,2069.7,0.001]
[1772616198833,6.02415896,2070.4,2069.6,0.001]
[1772616199045,6.21231224,2070.2,2069.4,0.001]
[1772616199205,7.68631224,2070.2,2069.4,0.001]
[1772616199409,7.68631224,2070.2,2069.2,0.001]
[1772616200144,6.21231224,2069.8,2069.2,0.001]
[1772616200341,6.21231224,2069.8,2069.0,0.67245743]
[1772616201108,6.21231224,2069.8,2067.5,1.20918984]
[1772616201109,1.52103753,2069.3,2067.5,1.20918984]
[1772616201314,7.68631224,2069.5,2067.6,6.01212367]
[1772616201544,6.21231224,2069.5,2067.6,6.01212367]
[1772616201904,6.21231224,2069.5,2067.8,5.92484658]
[1772616202110,7.33134639,2069.4,2068.0,5.92484658]
[1772616203234,7.33134639,2069.4,2068.2,5.92484658]
[1772616203442,7.33134639,2069.4,2068.2,5.92584658]
[1772616203642,1.20807963,2069.4,2068.2,5.92584658]
[1772616203941,1.20807963,2069.4,2068.4,5.92484658]
[1772616204115,6.12326676,2069.5,2068.3,1.348]
[1772616204610,6.12326676,2069.5,2068.2,1.20977822]
[1772616204814,6.12326676,2069.5,2068.3,1.348]
[1772616205241,6.12326676,2069.5,2068.0,4.83653813]
[1772616205440,6.12326676,2069.0,2068.0,0.001]
[1772616206036,1.20837159,2068.9,2068.0,0.001]
[1772616206433,1.20837159,2068.9,2068.1,7.27184658]
[1772616208350,10.95675315,2069.3,2068.1,7.27184658]
[1772616208662,10.95675315,2069.3,2068.1,7.27084658]
[1772616208836,10.95675315,2069.3,2068.2,1.346]
[1772616209573,10.95675315,2069.3,2068.3,1.346]
[1772616209765,10.95675315,2069.3,2068.1,7.27084658]
[1772616209766,6.12326676,2069.2,2068.1,7.27084658]
[1772616210071,7.64430429,2069.1,2068.0,0.001]
[1772616210362,1.20831319,2069.0,2068.0,0.001]
[1772616210567,7.33157995,2069.0,2068.0,0.001]
[1772616211475,7.33157995,2069.0,2067.5,1.20914522]
[1772616211476,6.12326676,2068.2,2067.4,0.1636851]
[1772616211636,6.12326676,2068.5,2067.4,7.29777493]
[1772616211844,0.5,2068.8,2067.6,5.92484658]
[1772616212059,7.59726676,2068.9,2067.6,5.92484658]
[1772616212461,1.20843,2068.8,2067.8,5.92484658]
[1772616212659,7.33169676,2068.8,2067.4,7.29774903]
[1772616212860,7.33169676,2068.8,2067.9,1.345]
[1772616213044,7.33169676,2068.8,2067.8,1.345]
[1772616213256,8.85273429,2068.8,2067.6,1.345]
[1772616213975,7.33169676,2068.8,2067.4,6.08853168]
[1772616214155,7.33169676,2068.8,2067.5,7.26884658]
[1772616214361,7.33169676,2068.8,2067.5,5.92484658]
[1772616214559,7.33169676,2068.8,2067.6,1.344]
[1772616215075,7.33169676,2068.8,2067.6,6.76934658]
[1772616215275,1.20843,2068.8,2067.6,6.76934658]
[1772616216386,4.83372003,2069.0,2067.8,5.92484658]
[1772616216750,4.83372003,2069.0,2067.8,5.92584658]
[1772616217103,0.002,2068.6,2067.8,0.001]
[1772616217484,6.12526676,2068.6,2067.5,0.001]
[1772616217682,6.12526676,2068.6,2067.5,1.344]
[1772616217894,6.12526676,2068.6,2067.5,2.55317895]
[1772616218064,6.12526676,2068.6,2067.5,8.47803143]
[1772616218476,1.20860526,2068.5,2067.6,1.343]
[1772616218861,8.85290955,2068.5,2067.5,5.92584658]
[1772616219169,7.33187202,2068.5,2067.5,1.343]
[1772616219663,7.33187202,2068.5,2067.4,1.5066851]
[1772616219998,7.33187202,2068.5,2067.4,1.5056851]
[1772616220156,7.33187202,2068.5,2067.4,0.1636851]
[1772616220157,6.12326676,2068.4,2067.4,0.1636851]
[1772616220652,6.12326676,2068.2,2067.4,0.1636851]
[1772616221074,6.12326676,2068.2,2067.4,1e-08]
[1772616221599,1.20872213,2068.3,2067.4,1e-08]
[1772616221600,6.18880276,2068.1,2067.4,1e-08]
[1772616221897,1.20872213,2068.3,2067.4,1e-08]
[1772616222100,7.33198889,2068.3,2067.4,1e-08]
[1772616224213,4.83488855,2068.5,2067.5,5.92484658]
[1772616224214,4.83459716,2068.5,2067.5,5.92484658]
[1772616224512,0.002,2068.6,2067.6,7.13397794]
[1772616226301,0.002,2068.6,2067.6,7.26484658]
[1772616226602,1.21054684,2068.6,2067.7,7.26484658]
[1772616226901,1.21054684,2068.6,2067.7,5.92484658]
[1772616227574,0.002,2068.6,2067.7,5.92484658]
[1772616228584,0.002,2068.6,2067.8,1.20901441]
[1772616228785,0.002,2068.6,2067.7,2.54803627]
[1772616229199,0.002,2068.6,2067.6,1.20909889]
[1772616229513,1.09117665,2068.5,2067.6,1.339]
[1772616229690,2.88157629,2068.4,2067.8,0.001]
[1772616229893,6.46296312,2068.3,2067.3,0.001]
[1772616230091,6.46296312,2068.3,2066.1,6.15264998]
[1772616230092,1.54168241,2068.4,2066.9,6.15264998]
[1772616230297,0.002,2068.6,2067.2,6.15264998]
[1772616230799,1.21054684,2068.6,2067.4,6.15264998]
[1772616232721,0.002,2068.6,2067.6,6.15264998]
[1772616233289,0.002,2068.8,2067.7,6.15264998]
[1772616234691,0.002,2068.8,2067.9,6.15264998]
[1772616234899,0.002,2068.8,2067.9,7.48964998]
[1772616235692,0.002,2068.8,2067.9,6.15264998]
[1772616236944,0.002,2068.8,2068.0,8.69854746]
[1772616237143,0.002,2068.8,2068.0,7.36154746]
[1772616237324,0.002,2068.8,2068.0,7.48964998]
[1772616237530,0.002,2068.8,2068.0,6.15264998]
[1772616240230,0.002,2068.8,2068.0,7.3615178]
[1772616240418,0.002,2068.8,2068.2,6.15264998]
[1772616241152,0.002,2069.1,2068.4,6.15264998]
[1772616241725,0.002,2069.1,2068.5,6.15264998]
[1772616242243,0.002,2068.8,2068.5,6.15264998]
[1772616242445,0.002,2069.1,2068.5,6.15264998]
[1772616243048,0.002,2069.1,2068.7,6.15264998]
[1772616243239,0.002,2069.1,2068.8,7.48864998]
[1772616243854,2.88155674,2069.9,2068.8,7.48864998]
[1772616244578,0.002,2070.2,2068.9,0.065536]
[1772616244755,0.002,2070.2,2069.0,6.15264998]
[1772616245139,0.002,2070.2,2069.2,6.15264998]
[1772616245368,0.002,2070.2,2069.4,6.15264998]
[1772616245677,0.002,2070.2,2069.3,1.336]
[1772616245678,0.002,2070.2,2069.1,6.15264998]
[1772616246357,7.55413977,2070.1,2068.9,1.336]
[1772616247058,1.20772946,2070.0,2069.0,1.20831319]
[1772616247261,12.38505764,2070.1,2069.0,1.20831319]
[1772616247262,6.46296312,2070.1,2069.0,7.36096317]
[1772616247461,0.002,2070.2,2069.0,7.36096317]
[1772616247462,0.002,2070.4,2069.2,6.15264998]
[1772616247661,1.20949925,2070.4,2069.2,6.15264998]
[1772616247831,0.002,2070.7,2069.6,6.15264998]
[1772616248038,1.20932249,2070.7,2069.8,6.15264998]
[1772616248263,1.20932249,2070.7,2069.9,7.48864998]
[1772616248463,0.002,2070.7,2069.9,7.48864998]
[1772616249265,0.002,2070.7,2070.1,6.15264998]
[1772616250263,0.002,2070.7,2069.9,2.54378664]
[1772616250669,0.002,2070.7,2070.0,6.15264998]
[1772616251243,0.002,2070.7,2070.2,6.15264998]
[1772616253738,4.82736232,2071.6,2070.4,6.15264998]
[1772616253944,4.82736232,2071.6,2070.5,7.48864998]
[1772616254145,11.29032544,2071.6,2070.5,7.48864998]
[1772616255077,0.002,2071.0,2070.5,1.336]
[1772616255574,0.002,2071.0,2070.5,7.48864998]
[1772616255876,0.002,2071.0,2070.6,1.2073795]
[1772616256186,0.002,2071.0,2070.6,7.36002948]
[1772616256394,1.20679667,2071.7,2071.0,0.001]
[1772616257049,0.002,2072.0,2071.0,6.15364998]
[1772616257254,0.002,2072.0,2071.0,7.49064998]
[1772616257845,0.002,2072.0,2071.2,6.15264998]
[1772616258046,0.002,2072.2,2071.1,1.20708802]
[1772616258245,0.002,2072.2,2071.2,6.15264998]
[1772616259982,0.002,2072.2,2071.4,5.88011967]
[1772616260185,0.002,2072.5,2071.6,5.88011967]
[1772616260358,0.002,2072.8,2071.7,5.88011967]
[1772616260785,7.21682669,2072.8,2071.7,5.88011967]
[1772616261191,6.12565004,2072.8,2071.7,5.88011967]
[1772616261564,6.19521044,2072.1,2069.3,6.37282499]
[1772616261767,6.19521044,2071.6,2069.8,6.37282499]
[1772616262068,1.20685493,2071.5,2070.3,0.065536]
[1772616262267,1.20685493,2071.5,2070.4,1.337]
[1772616263799,7.40206537,2071.5,2070.4,1.337]
[1772616264298,7.40206537,2071.5,2070.5,1.20743781]
[1772616265408,1.20685493,2071.5,2070.5,7.5802628]
[1772616266284,4.82732233,2071.6,2070.5,7.5802628]
[1772616267311,4.82732233,2071.6,2070.7,0.001]
[1772616267476,4.82707588,2071.7,2070.7,0.001]
[1772616267882,1.20673842,2071.7,2070.7,6.37382499]
[1772616268386,7.65421044,2071.9,2070.7,6.37382499]
[1772616268387,6.19521044,2071.9,2070.8,7.58008788]
[1772616268708,1.20860547,2072.0,2071.0,6.37282499]
[1772616268895,1.20858366,2072.0,2071.0,6.37282499]
[1772616269094,7.4037941,2072.0,2070.8,1.20726289]
[1772616269413,7.4037941,2072.0,2070.8,7.58008788]
[1772616270076,7.4037941,2072.0,2070.7,6.16705157]
[1772616270077,6.19521044,2071.8,2070.7,2.54528309]
[1772616270411,7.40194886,2071.7,2070.7,1.338]
[1772616270799,7.65421044,2071.6,2070.7,0.001]
[1772616271794,1.20673842,2071.7,2070.7,7.58112541]
[1772616272105,7.40194886,2071.7,2070.7,0.001]
[1772616272292,6.19521044,2071.6,2070.7,0.001]
[1772616273721,2.29791507,2071.7,2070.7,0.001]
[1772616273722,1.20673842,2071.7,2070.7,0.001]
[1772616273927,7.40194886,2071.7,2070.7,0.001]
[1772616274330,0.002,2072.0,2070.7,6.37382499]
[1772616274534,1.44726654,2072.9,2070.7,6.37382499]
[1772616274535,0.002,2072.5,2071.0,6.43836099]
[1772616274696,0.002,2072.5,2071.6,6.37282499]
[1772616275022,0.002,2072.5,2071.8,6.37282499]
[1772616276310,0.002,2072.5,2071.8,7.57946011]
[1772616276510,0.002,2072.5,2071.4,11.20038536]
[1772616276713,0.002,2072.5,2071.5,1.20685493]
[1772616277028,10.0,2072.0,2071.1,0.065536]
[1772616277244,10.0,2072.0,2071.0,7.57991301]
[1772616277245,10.0,2072.0,2071.2,1.336]
[1772616277439,10.0,2072.0,2071.0,1.20708802]
[1772616278628,1.20662194,2071.9,2071.0,1.20708802]
[1772616279130,10.0,2072.0,2071.0,7.57991301]
[1772616279936,10.0,2072.0,2071.2,6.37282499]
[1772616280539,2.53506737,2072.0,2071.5,6.37282499]
[1772616280739,0.002,2072.5,2071.7,6.37282499]
[1772616281127,0.002,2072.2,2071.7,6.37282499]
[1772616281749,0.002,2072.5,2071.7,6.37282499]
[1772616281965,1.20827452,2072.5,2071.7,6.37282499]
[1772616282267,1.20827262,2072.5,2071.7,6.37282499]
[1772616282463,0.002,2072.5,2071.7,6.37282499]
[1772616282629,0.002,2072.5,2071.8,1.20668018]
[1772616282829,0.002,2072.5,2071.7,1.20672468]
[1772616286692,0.002,2072.8,2071.9,6.37282499]
[1772616287175,0.002,2072.8,2072.0,7.57938869]
[1772616287492,0.002,2072.8,2072.1,1.336]
[1772616287773,0.002,2072.8,2071.9,2.54258547]
[1772616287943,6.19721044,2072.8,2071.9,2.54258547]
[1772616288144,6.19721044,2072.8,2071.9,1.336]
[1772616288374,6.19721044,2072.8,2071.8,1.20664485]
[1772616288578,6.19721044,2072.8,2071.7,1.20671754]
[1772616288789,0.002,2073.0,2072.0,0.065536]
[1772616288953,0.002,2073.3,2072.3,6.48575304]
[1772616289152,0.002,2073.3,2072.1,1.41306903]
[1772616289153,10.1035447,2073.9,2072.7,6.48575304]
[1772616289377,6.4125918,2073.8,2072.7,1.336]
[1772616290180,4.82145643,2074.1,2072.7,7.82175304]
[1772616290380,7.61791303,2074.2,2072.7,7.82175304]
[1772616291092,7.61791303,2074.2,2072.6,2.54221441]
[1772616291291,7.61791303,2074.2,2072.6,1.20621441]
[1772616291496,6.4125918,2074.0,2072.4,7.69208285]
[1772616291794,1.20532123,2074.2,2072.4,1.20632981]
[1772616291795,6.4125918,2073.8,2072.4,1.20632981]
[1772616293073,7.8645918,2073.8,2072.4,1.20632981]
[1772616293282,0.002,2072.6,2072.4,1.20632981]
[1772616293470,0.002,2072.8,2072.6,0.001]
[1772616293671,0.002,2073.1,2072.6,0.001]
[1772616295594,0.001,2073.1,2072.4,1.20632981]
[1772616296183,0.001,2073.1,2072.3,2.54234497]
[1772616296509,6.4135918,2073.1,2071.9,7.69231674]
[1772616296811,0.001,2073.1,2071.9,7.69231674]
[1772616297114,0.001,2073.1,2072.3,6.48575304]
[1772616297289,0.001,2073.1,2072.5,6.48575304]
[1772616298020,0.001,2073.1,2072.6,1.20621441]
[1772616298318,0.001,2073.1,2072.4,1.20630109]
[1772616298619,0.001,2073.1,2072.3,1.2063356]
[1772616298911,0.001,2073.1,2072.3,2.5413356]
[1772616299122,6.4135918,2073.1,2072.3,2.5413356]
[1772616299414,0.001,2073.1,2072.3,2.5413356]
[1772616300821,0.001,2073.1,2072.4,6.48575304]
[1772616301901,1.20567339,2073.6,2072.4,6.48575304]
[1772616302289,1.20567339,2073.6,2072.5,1.20627261]
[1772616302290,7.61828266,2073.5,2072.5,1.20627261]
[1772616303093,7.51474108,2073.9,2072.5,7.69202565]
[1772616303094,1.20551644,2073.8,2072.5,7.69202565]
[1772616303327,7.61810824,2073.8,2072.6,1.335]
[1772616303537,7.61810824,2073.8,2072.6,7.82075304]
[1772616303693,6.4125918,2073.8,2072.6,7.82075304]
[1772616303900,3.89794135,2073.9,2072.6,7.82075304]
[1772616303901,3.89794135,2073.9,2072.8,6.48575304]
[1772616304125,6.4125918,2073.8,2072.6,1.335]
[1772616304308,6.4125918,2073.8,2072.7,1.20615622]
[1772616304309,1.20557457,2073.7,2072.7,1.20615622]
[1772616304515,7.61816637,2073.7,2072.7,1.20615622]
[1772616304710,7.61816637,2073.7,2072.6,1.2061699]
[1772616304999,6.4125918,2073.3,2071.9,1.20658289]
[1772616305425,6.4125918,2073.3,2072.0,0.001]
[1772616305732,7.8595918,2073.3,2072.0,0.001]
[1772616306108,6.4125918,2072.8,2072.0,0.001]
[1772616306311,6.4125918,2072.6,2071.8,0.001]
[1772616306518,7.8595918,2072.6,2071.8,0.001]
[1772616307356,6.4125918,2072.6,2071.8,0.001]
[1772616307543,7.61865296,2072.9,2071.8,6.48675304]
[1772616308304,7.61865296,2072.9,2071.8,0.001]
[1772616309031,7.61865296,2072.9,2071.8,6.48675304]
[1772616310133,6.4125918,2073.3,2072.0,6.48575304]
[1772616310441,1.20586532,2073.2,2072.0,7.82075304]
[1772616310609,6.4125918,2073.2,2072.1,1.20650547]
[1772616310805,6.4145918,2073.6,2072.2,6.48575304]
[1772616311154,6.4145918,2073.6,2072.4,6.48575304]
[1772616311155,1.20763677,2073.6,2072.4,6.48575304]
[1772616311696,1.20763677,2073.6,2072.5,7.82075304]
[1772616312391,1.20763677,2073.6,2072.6,1.335]
[1772616313146,0.002,2073.6,2072.7,1.20615622]
[1772616313373,6.4145918,2073.6,2072.6,2.54118883]
[1772616313787,0.002,2073.6,2072.6,9.02694187]
[1772616314087,0.002,2073.6,2072.7,6.48575304]
[1772616314971,6.4145918,2073.6,2072.3,9.10417227]
[1772616315361,6.4145918,2073.6,2072.3,1.2063502]
[1772616315362,6.4125918,2073.4,2072.3,1.2063502]
[1772616316093,6.4125918,2073.4,2072.2,1.2064226]
[1772616316287,6.4125918,2073.4,2071.8,4.893122]
[1772616316288,6.4125918,2073.4,2071.9,1.20662194]
[1772616316691,6.4125918,2073.4,2071.9,7.69237498]
[1772616317462,1.20580716,2073.3,2071.9,7.69237498]
[1772616317961,1.20580716,2073.3,2072.0,1.334]
[1772616318164,7.61839896,2073.3,2072.8,0.001]
[1772616320778,6.31886888,2073.2,2072.3,0.001]
[1772616320971,7.76486888,2073.1,2072.3,0.001]
[1772616321992,7.65531129,2073.0,2072.3,0.001]
[1772616324092,1.20609803,2072.8,2072.3,0.001]
[1772616324294,7.65542766,2072.8,2072.3,0.001]
[1772616326157,1.20609803,2072.8,2072.3,0.001]
[1772616327603,7.65542766,2072.8,2072.3,0.001]
[1772616328607,6.27093735,2073.0,2072.3,0.001]
[1772616328608,4.82409673,2073.0,2072.3,0.001]
[1772616328814,1.449,2072.9,2072.3,0.001]
[1772616329473,4.82409673,2073.0,2072.3,0.001]
[1772616329676,1.20595728,2073.1,2072.3,6.39660213]
[1772616329935,0.002,2073.6,2072.3,6.39660213]
[1772616330106,6.27185911,2073.5,2072.4,7.60193295]
[1772616331351,1.20569086,2073.5,2072.5,0.001]
[1772616331634,0.002,2073.1,2072.6,6.39560213]
[1772616332012,0.002,2073.1,2072.5,0.001]
[1772616333038,0.002,2073.3,2072.6,6.39560213]
[1772616333251,0.002,2073.3,2072.8,6.39560213]
[1772616334338,0.002,2073.6,2072.9,7.60164197]
[1772616335939,0.002,2073.6,2072.9,1.20603984]
[1772616336155,0.002,2073.6,2072.9,7.60164197]
[1772616336722,0.002,2073.8,2073.0,6.39560213]
[1772616338335,0.002,2073.8,2073.1,7.60152562]
[1772616339838,0.002,2074.1,2073.3,6.39560213]
[1772616340028,0.002,2074.1,2073.5,6.39560213]
[1772616340231,0.002,2074.3,2073.5,6.39560213]
[1772616340534,0.002,2074.3,2073.6,7.60123484]
[1772616342839,0.002,2074.5,2073.6,7.60123484]
[1772616343060,6.44932963,2074.4,2072.8,6.68547056]
[1772616343206,6.44932963,2074.4,2072.9,1.20603984]
[1772616343410,6.44932963,2074.4,2072.9,7.60164197]
[1772616343635,6.44932963,2074.4,2073.1,6.39560213]
[1772616344549,1.20522585,2074.3,2073.2,1.20586532]
[1772616344713,1.20522585,2074.3,2073.2,7.60146745]
[1772616345021,0.002,2074.1,2073.2,7.60146745]
[1772616345632,0.002,2074.1,2073.3,1.328]
[1772616345838,0.002,2074.3,2073.3,1.328]
[1772616346051,4.81999014,2074.7,2073.3,1.328]
[1772616346052,0.002,2074.8,2073.6,6.39560213]
[1772616346249,11.26723524,2075.6,2073.8,0.14948499]
[1772616346250,1.20674222,2075.5,2073.8,0.14948499]
[1772616346419,7.65607185,2075.5,2074.1,0.14948499]
[1772616346613,1.20458706,2075.4,2074.3,6.46113813]
[1772616346813,1.20458706,2075.4,2074.3,6.39560213]
[1772616347038,8.86064497,2075.5,2074.4,7.72360213]
[1772616347341,2.41131534,2075.5,2074.4,7.72360213]
[1772616349440,2.41131534,2075.5,2074.5,7.51228119]
[1772616351124,1.20674222,2075.5,2074.5,7.51228119]
[1772616351349,4.81716682,2076.0,2074.6,6.30717153]
[1772616351550,7.5086378,2076.1,2075.0,6.30717153]
[1772616351720,7.5086378,2076.1,2075.1,1.328]
[1772616351914,6.30442102,2076.7,2075.1,7.63517153]
[1772616352120,7.50825402,2076.7,2075.1,7.63517153]
[1772616352548,7.50825402,2076.7,2075.3,6.30717153]
[1772616353222,7.50825402,2076.7,2075.4,1.20458706]
[1772616353548,1.203833,2076.7,2075.5,6.45665652]
[1772616353750,7.50825402,2076.7,2075.4,1.20458706]
[1772616353952,7.50825402,2076.7,2075.4,1.328]
[1772616354615,7.50825402,2076.7,2075.1,7.51190028]
[1772616354616,6.30442102,2076.4,2074.9,1.27036946]
[1772616354852,6.30442102,2076.2,2074.9,2.59836946]
[1772616355018,7.3879902,2076.2,2074.8,1.328]
[1772616355355,6.30442102,2075.8,2074.8,2.53293148]
[1772616355520,2.68078376,2075.9,2074.8,8.84010301]
[1772616356186,8.98520478,2075.9,2074.8,8.84010301]
[1772616357224,6.30442102,2075.8,2074.8,8.84010301]
[1772616357447,1.20641296,2075.7,2074.8,8.84010301]
[1772616357646,1.20641296,2075.7,2074.8,2.53293148]
[1772616357946,7.51083398,2075.7,2074.7,1.20494905]
[1772616358146,7.51083398,2075.7,2074.7,2.53294905]
[1772616358451,0.002,2075.7,2074.8,6.30717153]
[1772616358925,0.002,2075.7,2074.9,1.327]
[1772616359246,0.002,2075.7,2075.0,1.327]
[1772616359464,0.002,2075.7,2075.0,2.53179414]
[1772616361189,0.002,2075.7,2075.1,1.327]
[1772616361941,6.30642102,2075.7,2074.7,1.20496575]
[1772616362173,6.30642102,2075.7,2074.6,1.20601386]
[1772616363247,6.30642102,2075.7,2074.6,0.001]
[1772616363568,6.30642102,2075.7,2074.6,1.20605101]
[1772616363771,6.30442102,2075.5,2074.6,1.20605101]
[1772616364680,6.30442102,2075.5,2074.6,0.001]
[1772616364970,6.30442102,2075.3,2074.4,1.98720556]
[1772616365160,6.30442102,2075.3,2074.1,0.001]
[1772616365161,7.3879902,2075.3,2074.1,0.001]
[1772616365365,6.30442102,2075.3,2074.1,0.001]
[1772616365550,7.3879902,2075.3,2074.1,0.001]
[1772616365753,1.20470316,2075.2,2074.1,0.001]
[1772616365953,6.30442102,2075.1,2074.1,0.001]
[1772616366747,7.3879902,2075.1,2074.1,0.001]
[1772616367280,1.08356918,2074.8,2073.3,2.53277249]
[1772616367485,7.74842102,2074.7,2073.3,2.53277249]